Workbook

Sheet 1
E1: Приложение 1 к Постановлению № 18/1 от 15.07. 2022 г « Об исполнении бюджета сельской администрации МО Малочергинское сельское поселение за 2 квартал 2022 года."
A2: Объем поступлений доходов в бюджет муниципального образования Малочергинское сельское поселение за 2 квартал 2022 году
A3: Код главы администратора* | B3: Код бюджетной классификации Российской Федерации | C3: Наименование доходов | D3: Изменения (+;-) | E3: Утверждено, сумма (тыс.рублей) | F3: Исполнено, сумма (тыс.рублей) | G3: Неисполненные назначение сумма (тыс.рублей)
A4: 1 | B4: 2 | C4: 3 | D4: 4 | E4: 5
A5: 182 | B5: 1 00 00000 00 0000 000 | C5: НАЛОГОВЫЕ И НЕНАЛОГОВЫЕ ДОХОДЫ | D5: =D6+D15 ->  | E5: =E6+E15 -> 347.00 | F5: =F6+F15 -> 127.46 | G5: =E5-F5 -> 220
C6: НАЛОГОВЫЕ ДОХОДЫ | D6: =D7+D8+D10 -> 42.1 | E6: =E7+E8+E10 -> 335.00 | F6: =F7+F8+F10 -> 121.46 | G6: =E6-F6 -> 214
A7: 182 | B7: 1 01 02000 01 0000 110 | C7: Налог на доходы физических лиц | D7: 12.0 | E7: 20.00 | F7: 11.92 | G7: 8
A8: 182 | B8: 1 05 00000 00 0000 000 | C8: Налоги на совокупный доход | D8: =D9 -> -1.2 | E8: =E9 -> 20.00 | F8: =F9 -> 28.51 | G8: -9
A9: 182 | B9: 1 05 03000 01 0000 110 | C9: Единый сельскохозяйственный налог | D9: -1.2 | E9: 20.00 | F9: 28.51 | G9: -9
A10: 182 | B10: 1 06 00000 00 0000 000 | C10: Налоги на имущество | D10: =D11+D14 -> 31.3 | E10: =E11+E12 -> 295.00 | F10: =F11+F12 -> 81.03 | G10: 214
A11: 182 | B11: 1 06 01000 00 0000 110 | C11: Налог на имущество физических лиц | D11: -8.7 | E11: 35.00 | F11: 0.74 | G11: 34
A12: 182 | B12: 1 06 06000 00 0000 110 | C12: Земельный налог | D12: 40.0 | E12: =E13+E14 -> 260.00 | F12: =F13+F14 -> 80.29 | G12: 180
A13: 182 | B13: 1 06 06033 10 1000 110 | C13: Земельный налог с организаций | E13: 60.00 | F13: 57.23 | G13: 3
A14: 182 | B14: 1 06 06043 10 1000 110 | C14: Земельный налог с физических лиц | D14: 40.0 | E14: 200.00 | F14: 23.06 | G14: 177
C15: НЕНАЛОГОВЫЕ ДОХОДЫ | D15: =#REF! ->  | E15: =E16 -> 12.00 | F15: =F16 -> 6.00 | G15: 6
A16: 801 | B16: 1 11 05035 10 0000 120 | C16: Доходы от сдачи в аренду имущества, находящегося в оперативном управлении органов управления сельских поселений и созданных ими учреждений (за исключением имущества муниципальных бюджетных и автономных учреждений) | E16: 12.00 | F16: 6.00 | G16: 6
A17: 801 | B17: 2 00 00000 00 0000 000 | C17: Безвозмездные поступления | D17: =D18 -> 0.0 | E17: =E18+E25 -> 2677.90 | F17: =F18+F25 -> 1610.75 | G17: 1067
A18: 801 | B18: 2 02 00000 00 0000 000 | C18: Безвозмездные поступления от других бюджетов бюджетной системы Российской Федерации | D18: 0.0 | E18: =E19 -> 2682.90 | F18: =F19 -> 1615.75 | G18: 1067
A19: 801 | B19: 2 02 00000 00 0000 000 | C19: Безвозмездные поступления от других бюджетов бюджетной системы Российской Федерации | E19: =SUM(E20:E24) -> 2682.90 | F19: =SUM(F20:F24) -> 1615.75 | G19: 1067
A20: 801 | B20: 2 02 15001 10 0000 150 | C20: Дотации бюджетам субъектов Российской Федерации и муниципальных образований | E20: 1817.00 | F20: 1008.50 | G20: 809
A21: 801 | B21: 2 02 35118 10 0000 150 | C21: Субвенции бюджетам сельских поселений на выполнение передаваемых полномочий субъектов Российской Федерации | E21: 7.00 | F21: 7.00 | G21: 0
A22: 801 | B22: 2 02 03000 00 0000 151 | C22: Субвенции бюджетам субъектов Российской Федерации и муниципальных образований | D22: 2.3 | E22: 104.30 | F22: 53.40 | G22: 51
A23: 801 | B23: 2 02 04014 10 0000 151 | C23: Межбюджетные трансферты, передаваемые бюджетам муниципальных образований на осуществление части полномочий по решению вопросов местного значения | D23: -45.8 | E23: 246.80 | F23: 148.26 | G23: 99
A24: 801 | B24: 2 02 04999 10 0000 151 | C24: Прочие межбюджетные трансферты, передаваемые бюджетам сельских поселений | D24: 45.8 | E24: 507.80 | F24: 398.60 | G24: 109
A25: 801 | B25: 2 19 60010 10 0000 150 | C25: Возврат прочих остатков субсидий, субвенций и иных межбюджетных трансфертов, имеющих целевое назначение, прошлых лет из бюджетов сельских поселений | E25: -5.00 | F25: -5.00 | G25: 0
C26: Всего доходов | D26: =D5+D17 ->  | E26: =E5+E17 -> 3024.90 | F26: =F5+F17 -> 1738.21 | G26: 1287

Sheet 2
B1: Приложение 2 к Постановлению № 18/1 от 15.07.2022 г « Об исполнении бюджета сельской администрации МО Малочергинское сельское поселение за 2 квартал 2022 года."
A3: Распределение бюджетных ассигнований по разделам, подразделам классификации расходов бюджета муниципального образования Малочергинское сельское поселение за 2 квартал 2022 год
A5: Наименование показателя | B5: Раздел, подраздел | C5: Изменения (+;-) | D5: Утверждено, (тыс.руб.) | E5: Исполнено, (тыс.руб.) | F5: Неисполненные назначение сумма (тыс.руб.)
A6: ОБЩЕГОСУДАРСТВЕННЫЕ ВОПРОСЫ | B6: 0100 | C6: =SUM(C7:C8) -> 130.8 | D6: =SUM(D7:D10) -> 1725.07 | E6: =SUM(E7:E10) -> 893.67 | F6: =D6-E6 -> 831.4
A7: Функционирование высшего должностного лица субъекта Российской Федерации и муниципального образования | B7: 0102 | C7: -38.0 | D7: 400.00 | E7: ='3'!H7 -> 169.08 | F7: =D7-E7 -> 230.9
A8: Функционирование Правительства Российской Федерации, высших исполнительных органов государственной власти субъектов Российской Федерации, местных администраций | B8: 0104 | C8: 168.8 | D8: ='3'!G11 -> 1084.39 | E8: ='3'!H11 -> 583.36 | F8: 501.0
A9: Резервные фонды | B9: 0111 | D9: 15.00 | F9: 15.0
A10: ДРУГИЕ ОБЩЕГОСУДАРСТВЕННЫЕ РАСХОДЫ | B10: 0113 | D10: ='3'!G32 -> 225.68 | E10: ='3'!H32 -> 141.23 | F10: 84.5
A11: НАЦИОНАЛЬНАЯ ОБОРОНА | B11: 0200 | C11: =C12 -> 50.5 | D11: =D12 -> 104.30 | E11: =E12 -> 53.40 | F11: 50.9
A12: Мобилизационная и вневойсковая подготовка | B12: 0203 | C12: 50.5 | D12: 104.30 | E12: ='3'!H49 -> 53.40 | F12: 50.9
A13: НАЦИОНАЛЬНАЯ ЭКОНОМИКА | B13: 0400 | D13: =D14+D15 -> 150.30 | E13: =E14 -> 42.84 | F13: 107.5
A14: Дорожное хозяйство (дорожные фонды) | B14: 0409 | D14: ='3'!G54 -> 150.30 | E14: ='3'!H54 -> 42.84 | F14: 107.5
A15: Другие вопросы в области национальной экономики | B15: 0412 | F15: 0.0
A16: ЖИЛИЩНО-КОММУНАЛЬНОЕ ХОЗЯЙСТВО | B16: 0500 | D16: =D18+D17 -> 435.64 | E16: =E17+E18 -> 33.26 | F16: 402.4
A17: Коммунальное хозяйство | B17: 0502 | D17: 96.50 | E17: ='3'!H59 -> 24.01 | F17: 72.5
A18: БЛАГОУСТРОЙСТВО | B18: 0503 | D18: ='3'!G63 -> 339.14 | E18: ='3'!H63 -> 9.25 | F18: 329.9
A19: ФИЗИЧЕСКАЯ КУЛЬТУРА И СПОРТ | B19: 1100 | C19: 11 | D19: =D20 -> 624.77 | E19: =E20 -> 307.83 | F19: 316.9
A20: Другие вопросы в области физической культуры и спорта | B20: 1105 | D20: ='3'!G68 -> 624.77 | E20: ='3'!H68 -> 307.83 | F20: 316.9
A21: ВСЕГО РАСХОДОВ | C21: =C6+#REF!+#REF!+C11+C13 ->  | D21: =D6+D11+D13+D16+D19 -> 3040.08 | E21: =E6+E11+E13+E16+E19 -> 1331.00 | F21: 1709.1

Sheet 3
C1: Приложение 3 к Постановлению № 18/1 от 15.07.2022 г « Об исполнении бюджета сельской администрации МО Малочергинское сельское поселение за 2 квартал 2022 года."
A2: Ведомственная структура расходов бюджета муниципального образования Малочергинское сельское поселение на 2022 год
H3: (тыс. рублей)
A4: Наименование главного распорядителя | B4: Гл | C4: Рз | D4: ПР | E4: ЦСР | F4: ВР | G4: Утверждено, (тыс.руб.) | H4: Исполнено, (тыс.руб.) | I4: Неисполненные назначение сумма (тыс.руб.)
A5: 1 | B5: 2 | C5: 3 | D5: 4 | E5: 5 | F5: 6 | G5: 7 | H5: 8 | I5: 9
A6: ОБЩЕГОСУДАРСТВЕННЫЕ ВОПРОСЫ | B6: 801 | C6: 01 | D6: 00 | G6: =G7+G11+G21+G32 -> 1725.07 | H6: =H7+H11+H21+H32 -> 893.67 | I6: =G6-H6 -> 831.4
A7: Функционирование высшего должностного лица субьекта Российской Федерации и муниципального образования | B7: 801 | C7: 01 | D7: 02 | G7: =G8 -> 400.00 | H7: 169.08 | I7: =G7-H7 -> 230.9
A8: Непрограммные направления деятельности сельской администрации | B8: 801 | C8: 01 | D8: 02 | G8: 400.00 | H8: 169.08 | I8: 230.9
A9: Обеспечение деятельности высшего должностного лица | B9: 801 | C9: 01 | D9: 02 | E9: 99 0 Л0 10100 | G9: 400.00 | H9: 169.08 | I9: 230.9
A10: Расходы на выплаты персоналу в целях обеспечения выполнения функций государственными (муниципальными) органами, казенными учреждениями, органами управления государственными внебюджетными фондами | B10: 801 | C10: 01 | D10: 02 | E10: 99 0 Л0 10100 | F10: 100 | G10: 400.00 | H10: 169.08 | I10: 230.9
A11: Функционирование Правительства Российской Федерации, высших исполнительных органов государственной власти субъектов Российской Федерации, местных администрации | B11: 801 | C11: 01 | D11: 04 | G11: =G12+G17 -> 1084.39 | H11: =H12+H17 -> 583.36 | I11: 501.0
A12: Подпрограмма "Развитие экономического и налогового потенциал" | B12: 801 | C12: 01 | D12: 04 | E12: 01 2 00 00000 | G12: =G13+G15 -> 51.72 | H12: =H13+H15 -> 6.67 | I12: 45.0
A13: Основное мероприятие "Формирование эффективной системы управления и распоряжения муниципальными финансами" | B13: 801 | C13: 01 | D13: 04 | E13: 01 2 01 00000 | G13: =G14 -> 10.00 | H13: =H14 -> 6.67 | I13: 3.3
A14: Уплата налогов, сборов и иных платежей | B14: 801 | C14: 01 | D14: 04 | E14: 01 2 01 01000 | F14: 800 | G14: 10.00 | H14: 6.67 | I14: 3.3
A15: Основное мероприятие "Повышение эффективности управления муниципальной собственностью" | B15: 801 | C15: 01 | D15: 04 | E15: 01 2 02 10000 | G15: =G16 -> 41.72 | H15: =H16 -> 0.00 | I15: 41.7
A16: Иные межбюджетные трансферты | B16: 801 | C16: 01 | D16: 04 | E16: 01 2 02 01100 | F16: 500 | G16: 41.72 | H16: 0.00 | I16: 41.7
A17: Подпрограмма "Создание условий реализаций муниципальной программы" | B17: 801 | C17: 01 | D17: 04 | E17: 01 3 00 00000 | G17: =G18 -> 1032.67 | H17: =H18 -> 576.69 | I17: 456.0
A18: Основное мероприятие "Повышение эффективности муниципального управления" | B18: 801 | C18: 01 | D18: 04 | E18: 01 3 01 00000 | G18: =G19+G20 -> 1032.67 | H18: =H19+H20 -> 576.69 | I18: 456.0
A19: Расходы на выплаты персоналу в целях обеспечения выполнения функций государственными (муниципальными) органами, казенными учреждениями, органами управления государственными внебюджетными фондами | B19: 801 | C19: 01 | D19: 04 | E19: 01 3 У1 80110 | F19: 100 | G19: 892.67 | H19: 525.39 | I19: 367.3
A20: Расходы на выплаты персоналу в целях обеспечения выполнения функций государственными (муниципальными) органами, казенными учреждениями, органами управления государственными внебюджетными фондами | B20: 801 | C20: 01 | D20: 04 | E20: 01 3 У1 S8500 | F20: 100 | G20: 140.00 | H20: 51.30 | I20: 88.7
A21: РЕЗЕРВНЫЕ ФОНДЫ | B21: 801 | C21: 01 | D21: 11 | G21: =G22 -> 15.00 | I21: 15.0
A22: Подпрограмма «Обеспечение безопасности населения и профилактика терроризма и экстремизма» | B22: 801 | C22: 01 | D22: 11 | E22: 02 2 00 00000 | G22: =G23+G26+G29 -> 15.00 | I22: 15.0
A23: Основное мероприятие "Обеспечение первичных мер пожарной безопасности в границах поселений" | B23: 801 | C23: 01 | D23: 11 | E23: 02 2 01 Ш1000 | G23: =G24 -> 5.00 | I23: 5.0
A24: Обеспечение первичных мер пожарной безопасности | B24: 801 | C24: 01 | D24: 11 | E24: 02 2 01 Ш1000 | G24: =G25 -> 5.00 | I24: 5.0
A25: Иные бюджетные ассигнования | B25: 801 | C25: 01 | D25: 11 | E25: 02 2 01 Ш1000 | F25: 800 | G25: 5.00 | I25: 5.0
A26: Основное мероприятие "Профилактика терроризма и экстремизма в границах поселения" | B26: 801 | C26: 01 | D26: 11 | E26: 02 2 02 Ш2000 | G26: =G27 -> 5.00 | I26: 5.0
A27: Совершенствование системы информационно-пропагандистского противодействия терроризму и экстремизму | B27: 801 | C27: 01 | D27: 11 | E27: 02 2 02 Ш2000 | G27: =G28 -> 5.00 | I27: 5.0
A28: Иные бюджетные ассигнования | B28: 801 | C28: 01 | D28: 11 | E28: 02 2 02 Ш2000 | F28: 800 | G28: 5.00 | I28: 5.0
A29: Основное мероприятие "Предупреждение и ликвидация последствий чрезвычайных ситуаций в границах поселения" | B29: 801 | C29: 01 | D29: 11 | E29: 02 2 03 Ш3000 | G29: =G30 -> 5.00 | I29: 5.0
A30: Обеспечение наличия запасов резервов финансовых и материальных ресурсов для ликвидации ЧС | B30: 801 | C30: 01 | D30: 11 | E30: 02 2 03 Ш3000 | G30: =G31 -> 5.00 | I30: 5.0
A31: Иные бюджетные ассигнования | B31: 801 | C31: 01 | D31: 11 | E31: 02 2 03 Ш3000 | F31: 800 | G31: 5.00 | I31: 5.0
A32: ДРУГИЕ ОБЩЕГОСУДАРСТВЕННЫЕ ВОПРОСЫ | B32: 801 | C32: 01 | D32: 13 | G32: =G33+G36+G43+G46 -> 225.68 | H32: =H33+H36+H43+H46 -> 141.23 | I32: 84.5
A33: Подпрограмма "Развитие социально-культурной сферы" | B33: 801 | C33: 01 | D33: 13 | E33: 01 1 01 00000 | G33: =G34 -> 5.00 | I33: 5.0
A34: Основное мероприятие "Развитие культурно-досуговой деятельности" | B34: 801 | C34: 01 | D34: 13 | E34: 01 1 01 00000 | G34: =G35 -> 5.00 | I34: 5.0
A35: Закупка товаров, работ и услуг для обеспечения государственных (муниципальных) нужд | B35: 801 | C35: 01 | D35: 13 | E35: 01 1 01 01200 | F35: 200 | G35: 5.00 | H35: 0.00 | I35: 5.0
A36: Подпрограмма "Развитие экономического и налогового потенциал" | B36: 801 | C36: 01 | D36: 13 | E36: 01 2 00 00000 | G36: =G37+G40 -> 128.68 | H36: =H37+H40 -> 85.54 | I36: 43.1
A37: Основное мероприятие "Формирование эффективной системы управления и распоряжения муниципальными финансами" | B37: 801 | C37: 01 | D37: 13 | E37: 01 2 01 00000 | G37: =G38 -> 34.50 | I37: 34.5
A38: Обеспечение мероприятий по обеспечению доступа к внешним информационным ресурсам | B38: 801 | C38: 01 | D38: 13 | E38: 01 2 01 S9600 | G38: =G39 -> 34.50 | I38: 34.5
A39: Закупка товаров, работ и услуг для обеспечения государственных (муниципальных) нужд | B39: 801 | C39: 01 | D39: 13 | E39: 01 2 01 S9600 | F39: 200 | G39: 34.50 | I39: 34.5
A40: Основное мероприятие "Повышение эффективности управления муниципальной собственностью" | B40: 801 | C40: 01 | D40: 13 | E40: 01 2 02 00000 | G40: =G41 -> 94.18 | H40: =H42 -> 85.54 | I40: 8.6
A41: Организация мероприятия по содержанию муниципального имущества | B41: 801 | C41: 01 | D41: 13 | E41: 01 2 02 01300 | G41: =G42 -> 94.18 | I41: 94.2
A42: Закупка товаров, работ и услуг для обеспечения государственных (муниципальных) нужд | B42: 801 | C42: 01 | D42: 13 | E42: 01 2 02 01300 | F42: 200 | G42: 94.18 | H42: 85.54 | I42: 8.6
A43: Подпрограмма "Создание условий реализаций муниципальной программы" | B43: 801 | C43: 01 | D43: 13 | E43: 01 3 01 00000 | G43: =G44 -> 85.00 | H43: =H44 -> 55.69 | I43: 29.3
A44: Организация мероприятий по оплате договоров гражданско-правового характера | B44: 801 | C44: 01 | D44: 13 | E44: 01 3 01 01200 | G44: =G45 -> 85.00 | H44: =H45 -> 55.69 | I44: 29.3
A45: Закупка товаров, работ и услуг для обеспечения государственных (муниципальных) нужд | B45: 801 | C45: 01 | D45: 13 | E45: 01 3 01 01200 | F45: 200 | G45: 85.00 | H45: 55.69 | I45: 29.3
A46: Непрограммные направления деятельности сельской администрации | B46: 801 | C46: 01 | D46: 13 | E46: 99 0 У0 45300 | G46: 7.00 | I46: 7.0
A47: Обеспечение мероприятий пв области законодательства об административных правонарушениях | B47: 801 | C47: 01 | D47: 13 | E47: 99 0 У0 45300 | G47: =G48 -> 7.00 | I47: 7.0
A48: Закупка товаров, работ и услуг для обеспечения государственных (муниципальных) нужд | B48: 801 | C48: 01 | D48: 13 | E48: 99 0 У0 45300 | F48: 200 | G48: 7.00 | I48: 7.0
A49: НАЦИОНАЛЬНАЯ ОБОРОНА | B49: 801 | C49: 02 | D49: 00 | G49: =G50 -> 104.30 | H49: 53.40 | I49: 50.9
A50: Мобилизационная и вневойсковая подготовка | B50: 801 | C50: 02 | D50: 03 | E50: 99 0 00 00000 | G50: 104.30 | H50: 53.40 | I50: 50.9
A51: Осуществление первичного воинского учета на территориях, где отсутствуют военные комиссариаты | B51: 801 | C51: 02 | D51: 03 | E51: 99 0 Л1 51180 | G51: 104.30 | H51: 53.40 | I51: 50.9
A52: Расходы на выплаты персоналу в целях обеспечения выполнения функций государственными (муниципальными) органами, казенными учреждениями, органами управления государственными внебюджетными фондами | B52: 801 | C52: 02 | D52: 03 | E52: 99 0 Л1 51180 | F52: 100 | G52: 104.30 | H52: 53.40 | I52: 50.9
A53: НАЦИОНАЛЬНАЯ ЭКОНОМИКА | B53: 801 | C53: 04 | D53: 00 | G53: =G54 -> 150.30 | H53: =H54 -> 42.84 | I53: 107.5
A54: Дорожное хозяйство | B54: 801 | C54: 04 | D54: 09 | G54: =G55 -> 150.30 | H54: =H55 -> 42.84 | I54: 107.5
A55: Подпрограмма "Развитие инженерно-коммунального и дорожно транспортного комплекса" | B55: 801 | C55: 04 | D55: 09 | E55: 02 1 01 0Д000 | G55: 150.30 | H55: =H56 -> 42.84 | I55: 107.5
A56: Основное мероприятие "Содержание и развитие дорожно-транспортного комплекса" | B56: 801 | C56: 04 | D56: 09 | E56: 02 1 01 0Д000 | G56: 150.30 | H56: =H57 -> 42.84 | I56: 107.5
A57: Закупка товаров, работ и услуг для обеспечения государственных (муниципальных) нужд | B57: 801 | C57: 04 | D57: 09 | E57: 02 1 01 0Д000 | F57: 200 | G57: 150.30 | H57: 42.84 | I57: 107.5
A58: ЖИЛИЩНО-КОММУНАЛЬНОЕ ХОЗЯЙСТВО | B58: 801 | C58: 05 | D58: 00 | G58: =G59+G63 -> 435.64 | H58: =H59+H63 -> 33.26 | I58: 402.4
A59: Коммунальное хозяйство | B59: 801 | C59: 05 | D59: 02 | G59: =G60 -> 96.50 | H59: 24.01 | I59: 72.5
A60: Подпрограмма "Развитие инженерно- коммунального и дорожно-транспортного комплекса" | B60: 801 | C60: 05 | D60: 02 | E60: 02 1 02 00000 | G60: 96.50 | H60: 24.01 | I60: 72.5
A61: Основное мероприятие "Содержание инженерно -коммунальной инфраструктуры | B61: 801 | C61: 05 | D61: 02 | E61: 02 1 02 00000 | G61: 96.50 | H61: 24.01 | I61: 72.5
A62: Закупка товаров, работ и услуг для обеспечения государственных (муниципальных) нужд | B62: 801 | C62: 05 | D62: 02 | E62: 02 1 02 01400 | F62: 200 | G62: 96.50 | H62: 24.01 | I62: 72.5
A63: Благоустройство | B63: 801 | C63: 05 | D63: 03 | G63: =G64 -> 339.14 | H63: 9.25 | I63: 329.9
A64: Подпрограмма "Повышение уровня благоустройство территории" | B64: 801 | C64: 05 | D64: 03 | E64: 02 3 00 00000 | G64: 339.14 | H64: 9.25 | I64: 329.9
A65: Основное мероприятие "Подержание и улучшение санитрарного и эстетического состояния территории" | B65: 801 | C65: 05 | D65: 03 | E65: 02 3 01 01200 | G65: 339.14 | H65: 9.25 | I65: 329.9
A66: Закупка товаров, работ и услуг для обеспечения государственных (муниципальных) нужд | B66: 801 | C66: 05 | D66: 03 | E66: 02 3 01 01200 | F66: 200 | G66: 339.14 | H66: 9.25 | I66: 329.9
A67: ФИЗИЧЕСКАЯ КУЛЬТУРА И СПОРТ | B67: 801 | C67: 11 | D67: 00 | G67: =G68 -> 624.77 | H67: 307.83 | I67: 316.9
A68: Другие вопросы в области физической культуры и спорта | B68: 801 | C68: 11 | D68: 05 | G68: 624.77 | H68: 307.83 | I68: 316.9
A69: Подпрограмма "Создание условий реализаций муниципальной программы" | B69: 801 | C69: 11 | D69: 05 | E69: 01 3 01 00000 | G69: 624.77 | H69: 307.83 | I69: 316.9
A70: Основное мероприятие "Повышение эффективности муниципального управления" | B70: 801 | C70: 11 | D70: 05 | E70: 01 3 01 01100 | G70: 624.77 | H70: 307.83 | I70: 316.9
A71: Расходы на выплаты персоналу в целях обеспечения выполнения функций государственными (муниципальными) органами, казенными учреждениями, органами управления государственными внебюджетными фондами | B71: 801 | C71: 11 | D71: 05 | E71: 01 3 01 01100 | F71: 100 | G71: 624.77 | H71: 307.83 | I71: =G71-H71 -> 316.9
A72: Условно утверждаемые расходы | B72: 999 | C72: 99 | D72: 99 | E72: 99 9 99 99999 | I72: 0.0
A73: ВСЕГО РАСХОДОВ | G73: =G6+G49+G53+G58+G67 -> 3040.08 | H73: =H6+H49+H53+H58+H67 -> 1331.00 | I73: 1709.1

Sheet 4
C1: Приложение 4 к Постановлению № 18/1 от 15.07.2022 г « Об исполнении бюджета сельской администрации МО Малочергинское сельское поселение за 2 квартал 2022 года."
A2: Источники финансирования бюджета муниципального образования Малочергинское сельское поселение за 2 квартал 2022 год
B4: Код бюджетной классификации | C4: Утвержденные плановые назначения на 2022 год, сумма (тыс. рублей) | D4: Кассовое исполнение за 2 квартал 2022 год, сумма (тыс. рублей) | E4: Неисполненные назначение сумма (тыс.руб.)
A5: Дефицит бюджета | C5: =C6 -> 15.18 | D5: =D6 -> -407.22 | E5: =C5-D5 -> 422.39
A6: Источники внутреннего финансирования дефицита бюджета: | B6: 000 01 00 00 00 00 0000 000 | C6: =C8 -> 15.18 | D6: =D8 -> -407.22 | E6: =C6-D6 -> 422.39
A7: в том числе: | E7: 0
A8: Изменение остатков средств на счетах по учету средств бюджета | B8: 000 01 05 00 00 00 0000 000 | C8: 15.18 | D8: -407.22 | E8: 422.39
